fUST/lending_fUST_20250102
["ID","MTS","AMOUNT","RATE_DAILY","PERIOD"]
[347446440,1735822254773,-500.0,0.00019726,3]
[347446441,1735822254783,-500.0,0.00019726,3]
[347446442,1735822254792,-500.0,0.00019726,3]
[347446443,1735822254802,-500.0,0.00019726,3]
[347446444,1735822254811,-500.0,0.00019726,3]
[347446445,1735822254821,-500.0,0.00019726,3]
[347446446,1735822254830,-500.0,0.00019726,3]
[347446447,1735822254839,-500.0,0.00019726,3]
[347446448,1735822254849,-500.0,0.00019726,3]
[347446449,1735822254858,-500.0,0.00019726,3]
[347446450,1735822254868,-500.0,0.00019726,3]
[347446451,1735822254877,-521.62,0.00019726,3]
[347446452,1735822254887,-500.0,0.00019726,3]
[347446453,1735822254896,-500.0,0.00019726,3]
[347446454,1735822254906,-500.0,0.00019726,3]
[347446455,1735822254915,-519.38,0.00019726,3]
[347446456,1735822254924,-500.0,0.00019726,3]
[347446457,1735822254934,-500.0,0.00019726,3]
[347446458,1735822254943,-500.0,0.00019726,3]
[347446459,1735822254953,-500.0,0.00019726,3]
[347446460,1735822254962,-500.0,0.00019726,3]
[347446461,1735822254972,-1177.49,0.00019726,3]
[347446462,1735822254981,-500.0,0.00019726,3]
[347446463,1735822254990,-500.0,0.00019726,3]
[347446464,1735822255000,-500.0,0.00019726,3]
[347446465,1735822255010,-603.36,0.00019726,3]
[347446466,1735822255019,-500.0,0.00019726,3]
[347446467,1735822255028,-500.0,0.00019726,3]
[347446468,1735822255037,-500.0,0.00019726,3]
[347446469,1735822255047,-426.4,0.00019726,3]
[347446470,1735822255056,-500.0,0.00019726,3]
[347446471,1735822255139,-500.0,0.00019726,3]
[347446472,1735822255149,-509.13395835,0.00019726,3]
[347446473,1735822255158,-500.0,0.00019726,3]
[347446474,1735822255168,-566.52,0.00019726,3]
[347446475,1735822255178,-500.0,0.00019726,3]
[347446476,1735822255187,-500.0,0.00019726,3]
[347446477,1735822255197,-500.0,0.00019726,3]
[347446478,1735822255206,-500.0,0.00019726,3]
[347446479,1735822255215,-500.0,0.00019726,3]
[347446480,1735822255224,-500.0,0.00019726,3]
[347446481,1735822255233,-500.0,0.00019726,3]
[347446482,1735822255242,-500.0,0.00019726,3]
[347446483,1735822255252,-556.42,0.00019726,3]
[347446484,1735822255261,-500.0,0.00019726,3]
[347446485,1735822255269,-1850.69,0.00019726,3]
[347446486,1735822255279,-500.0,0.00019726,3]
[347446487,1735822255288,-500.0,0.00019726,3]
[347446488,1735822255297,-1176.84,0.00019726,3]
[347446489,1735822255306,-500.0,0.00019726,3]
[347446490,1735822255316,-500.0,0.00019726,3]
[347446491,1735822255326,-500.0,0.00019726,3]
[347446492,1735822255335,-500.0,0.00019726,3]
[347446493,1735822255344,-500.0,0.00019726,3]
[347446494,1735822255354,-500.0,0.00019726,3]
[347446495,1735822255364,-500.0,0.00019726,2]
[347446496,1735822255374,-500.0,0.00019726,3]
[347446497,1735822255383,-574.70776609,0.00019726,3]
[347446498,1735822255392,-500.0,0.00019726,3]
[347446499,1735822255402,-500.0,0.00019726,3]
[347446500,1735822255411,-513.3,0.00019726,3]
[347446501,1735822255421,-500.0,0.00019726,3]
[347446502,1735822255432,-524.01362033,0.00019726,3]
[347446503,1735822255446,-500.0,0.00019726,3]
[347446504,1735822255456,-500.0,0.00019726,3]
[347446505,1735822255465,-500.0,0.00019726,3]
[347446506,1735822255474,-500.0,0.00019726,3]
[347446507,1735822255484,-502.64140384,0.00019726,3]
[347446508,1735822255495,-825.31,0.00019726,3]
[347446509,1735822255504,-500.0,0.00019726,3]
[347446510,1735822255514,-500.0,0.00019726,3]
[347446511,1735822255524,-500.0,0.00019726,3]
[347446512,1735822255534,-500.0,0.00019726,3]
[347446513,1735822255544,-500.0,0.00019726,3]
[347446514,1735822255554,-500.0,0.00019726,3]
[347446515,1735822255563,-500.0,0.00019726,3]
[347446516,1735822255572,-500.0,0.00019726,3]
[347446517,1735822255581,-500.0,0.00019726,3]
[347446518,1735822255591,-500.0,0.00019726,3]
[347446519,1735822255600,-503.38642326,0.00019726,3]
[347446520,1735822255609,-500.0,0.00019726,3]
[347446521,1735822255618,-500.0,0.00019726,3]
[347446522,1735822255628,-500.0,0.00019726,3]
[347446523,1735822255637,-9541.36,0.00019726,3]
[347446524,1735822255646,-892.3,0.00019726,3]
[347446525,1735822255656,-500.0,0.00019726,3]
[347446526,1735822255665,-500.0,0.00019726,3]
[347446527,1735822255674,-500.0,0.00019726,3]
[347446528,1735822255683,-500.0,0.00019726,3]
[347446529,1735822255693,-500.0,0.00019726,3]
[347446530,1735822255702,-500.0,0.00019726,3]
[347446531,1735822255711,-668.05,0.00019726,3]
[347446532,1735822255721,-500.0,0.00019726,3]
[347446533,1735822255730,-500.0,0.00019726,3]
[347446534,1735822255740,-500.0,0.00019726,3]
[347446535,1735822255750,-500.0,0.00019726,3]
[347446536,1735822255760,-500.0,0.00019726,3]
[347446537,1735822255769,-500.0,0.00019726,3]
[347446538,1735822255779,-500.0,0.00019726,3]
[347446539,1735822255788,-500.0,0.00019726,3]
[347446540,1735822255798,-2512.14,0.00019726,3]
[347446541,1735822255808,-500.0,0.00019726,3]
[347446542,1735822255817,-583.89,0.00019726,3]
[347446543,1735822255826,-614.71,0.00019726,3]
[347446544,1735822255835,-500.0,0.00019726,3]
[347446545,1735822255844,-500.0,0.00019726,3]
[347446546,1735822255854,-502.20169244,0.00019726,3]
[347446547,1735822255864,-350.36836463,0.00019726,3]
[347446548,1735822255873,-500.0,0.00019726,3]
[347446549,1735822255883,-500.0,0.00019726,3]
[347446550,1735822255892,-500.0,0.00019726,3]
[347446551,1735822255902,-500.0,0.00019726,3]
[347446552,1735822255912,-500.0,0.00019726,3]
[347446553,1735822255923,-500.0,0.00019726,3]
[347446554,1735822255933,-500.0,0.00019726,3]
[347446555,1735822255942,-228.62980952,0.00019726,3]
[347446556,1735822255951,-500.0,0.00019726,3]
[347446557,1735822255960,-500.0,0.00019773,2]
[347446558,1735822255970,-500.0,0.00019773,2]
[347446559,1735822255979,-623.10950096,0.00019773,2]
[347446560,1735822255988,-500.0,0.00019773,2]
[347446561,1735822255998,-500.0,0.00019773,2]
[347446562,1735822256007,-294.82156447,0.00019836,10]
[347446563,1735822256017,-5700.60360611,0.000199,2]
[347446564,1735822256026,-151.72523509,0.000199,2]
[347446565,1735822256035,-1283.29327393,0.0002,2]
[347446566,1735822256044,-1222.54503048,0.0002,2]
[347446567,1735822256054,-500.0,0.0002,3]
[347446568,1735822256063,-1710.78,0.0002,3]
[347446569,1735822256072,-500.0,0.0002,3]
[347446570,1735822256081,-10941.76,0.0002,2]
[347446571,1735822256091,-3009.82,0.0002,2]
[347446572,1735822256100,-500.0,0.0002,3]
[347446573,1735822256110,-9311.32,0.0002,2]
[347446574,1735822256119,-150.54,0.0002,3]
[347446575,1735822256129,-500.0,0.0002,3]
[347446576,1735822256138,-622.26,0.0002,3]
[347446577,1735822256147,-500.0,0.0002,3]
[347446578,1735822256156,-500.0,0.0002,3]
[347446579,1735822256166,-231.48,0.0002,3]
[347446580,1735822256175,-500.0,0.0002,3]
[347446581,1735822256184,-500.0,0.0002,3]
[347446582,1735822256193,-500.0,0.0002,3]
[347446583,1735822256202,-500.0,0.0002,3]
[347446584,1735822256211,-500.0,0.0002,3]
[347446585,1735822256221,-500.0,0.0002,3]
[347446586,1735822256230,-500.0,0.0002,3]
[347446587,1735822256239,-500.0,0.0002,3]
[347446588,1735822256248,-500.0,0.0002,3]
[347446589,1735822256258,-500.0,0.0002,3]
[347446590,1735822256267,-500.0,0.0002,3]
[347446591,1735822256276,-500.0,0.0002,3]
[347446592,1735822256286,-500.0,0.0002,3]
[347446593,1735822256296,-500.0,0.0002,3]
[347446594,1735822256305,-500.0,0.0002,3]
[347446595,1735822256315,-500.0,0.0002,3]
[347446596,1735822256323,-500.0,0.0002,3]
[347446597,1735822256333,-500.0,0.0002,3]
[347446598,1735822256342,-1177.49,0.0002,3]
[347446599,1735822256351,-500.0,0.0002,3]
[347446600,1735822256361,-500.0,0.0002,3]
[347446601,1735822256370,-500.0,0.0002,3]
[347446602,1735822256379,-500.0,0.0002,3]
[347446603,1735822256389,-500.0,0.0002,3]
[347446604,1735822256398,-500.0,0.0002,3]
[347446605,1735822256408,-500.0,0.0002,3]
[347446606,1735822256417,-500.0,0.0002,3]
[347446607,1735822256427,-500.0,0.0002,3]
[347446608,1735822256436,-500.0,0.0002,3]
[347446609,1735822256448,-500.0,0.0002,3]
[347446610,1735822256458,-500.0,0.0002,3]
[347446611,1735822256467,-556.42,0.0002,3]
[347446612,1735822256476,-500.0,0.0002,3]
[347446613,1735822256487,-1850.69,0.0002,3]
[347446614,1735822256497,-500.0,0.0002,3]
[347446615,1735822256506,-254.33965385,0.0002,3]
[347446616,1735822256585,-1176.84,0.0002,3]
[347446617,1735822256595,-500.0,0.0002,3]
[347446618,1735822256605,-500.0,0.0002,3]
[347446619,1735822256615,-500.0,0.0002,3]
[347446620,1735822256625,-196.88,0.0002,3]
[347446621,1735822256635,-500.0,0.0002,3]
[347446622,1735822256644,-500.0,0.0002,3]
[347446623,1735822256654,-500.0,0.0002,2]
[347446624,1735822256664,-500.0,0.0002,3]
[347446625,1735822256674,-500.0,0.0002,3]
[347446626,1735822256684,-500.0,0.0002,3]
[347446627,1735822256693,-500.0,0.0002,3]
[347446628,1735822256703,-500.0,0.0002,3]
[347446629,1735822256713,-825.31,0.0002,3]
[347446630,1735822256723,-500.0,0.0002,3]
[347446631,1735822256732,-500.0,0.0002,3]
[347446632,1735822256742,-500.0,0.0002,3]
[347446633,1735822256751,-500.0,0.0002,3]
[347446634,1735822256760,-500.0,0.0002,3]
[347446635,1735822256770,-500.0,0.0002,3]
[347446636,1735822256780,-500.0,0.0002,3]
[347446637,1735822256790,-500.0,0.0002,3]
[347446638,1735822256799,-9541.36,0.0002,3]
[347446639,1735822256808,-892.3,0.0002,3]
[347446640,1735822256817,-500.0,0.0002,3]
[347446641,1735822256827,-500.0,0.0002,3]
[347446642,1735822256837,-500.0,0.0002,3]
[347446643,1735822256846,-500.0,0.0002,3]
[347446644,1735822256856,-668.05,0.0002,3]
[347446645,1735822256865,-500.0,0.0002,3]
[347446646,1735822256874,-500.0,0.0002,3]
[347446647,1735822256884,-500.0,0.0002,3]
[347446648,1735822256894,-2512.14,0.0002,3]
[347446649,1735822256904,-583.89,0.0002,3]
[347446650,1735822256913,-614.71,0.0002,3]
[347446651,1735822256923,-500.0,0.0002,3]
[347446652,1735822256933,-500.0,0.0002,3]
[347446653,1735822256943,-500.0,0.0002,3]
[347446654,1735822256953,-500.0,0.0002,3]
[347446655,1735822256962,-500.0,0.0002,3]
[347446656,1735822256973,-1000.0,0.00020021,2]
[347446657,1735822256982,-151.72523506,0.00020131,2]
[347446658,1735822256992,-225.71482044,0.00020273,3]
[347446659,1735822257002,-1710.78,0.00020273,3]
[347446660,1735822257011,-500.0,0.00020273,3]
[347446661,1735822257020,-500.0,0.00020273,3]
[347446662,1735822257030,-500.0,0.00020273,3]
[347446663,1735822257039,-500.0,0.00020273,3]
[347446664,1735822257048,-500.0,0.00020273,3]
[347446665,1735822257058,-500.0,0.00020273,3]
[347446666,1735822257067,-500.0,0.00020273,3]
[347446667,1735822257076,-170.16433531,0.00020273,3]
[347446668,1735822257086,-500.0,0.00020273,3]
[347446669,1735822257095,-500.0,0.00020273,3]
[347446670,1735822257104,-500.0,0.00020273,3]
[347446671,1735822257115,-500.0,0.00020273,3]
[347446672,1735822257125,-500.0,0.00020273,3]
[347446673,1735822257134,-500.0,0.00020273,3]
[347446674,1735822257143,-500.0,0.00020273,3]
[347446675,1735822257152,-500.0,0.00020273,3]
[347446676,1735822257161,-500.0,0.00020273,3]
[347446677,1735822257170,-500.0,0.00020273,3]
[347446678,1735822257179,-500.0,0.00020273,3]
[347446679,1735822257188,-500.0,0.00020273,3]
[347446680,1735822257198,-500.0,0.00020273,3]
[347446681,1735822257207,-500.0,0.00020273,3]
[347446682,1735822257216,-573.26,0.00020273,3]
[347446683,1735822257226,-1177.49,0.00020273,3]
[347446684,1735822257235,-500.0,0.00020273,3]
[347446685,1735822257245,-500.0,0.00020273,3]
[347446686,1735822257255,-500.0,0.00020273,3]
[347446687,1735822257265,-500.0,0.00020273,3]
[347446688,1735822257274,-500.0,0.00020273,3]
[347446689,1735822257284,-500.0,0.00020273,3]
[347446690,1735822257294,-500.0,0.00020273,3]
[347446691,1735822257303,-254.34,0.00020273,3]
[347446692,1735822257312,-500.0,0.00020273,3]
[347446693,1735822257322,-500.0,0.00020273,3]
[347446694,1735822257332,-500.0,0.00020273,3]
[347446695,1735822257341,-500.0,0.00020273,3]
[347446696,1735822257351,-556.42,0.00020273,3]
[347446697,1735822257360,-450.98,0.00020273,3]
[347446698,1735822257370,-1850.69,0.00020273,3]
[347446699,1735822257380,-533.24,0.00020273,3]
[347446700,1735822257390,-1176.84,0.00020273,3]
[347446701,1735822257399,-500.0,0.00020273,3]
[347446702,1735822257408,-500.0,0.00020273,3]
[347446703,1735822257418,-500.0,0.00020273,3]
[347446704,1735822257428,-500.0,0.00020273,3]
[347446705,1735822257437,-500.0,0.00020273,3]
[347446706,1735822257450,-500.0,0.00020273,2]
[347446707,1735822257459,-500.0,0.00020273,3]
[347446708,1735822257469,-500.0,0.00020273,3]
[347446709,1735822257480,-340.16,0.00020273,3]
[347446710,1735822257491,-499.0,0.00020273,2]
[347446711,1735822257501,-500.0,0.00020273,3]
[347446712,1735822257511,-825.31,0.00020273,3]
[347446713,1735822257521,-500.0,0.00020273,3]
[347446714,1735822257531,-500.0,0.00020273,3]
[347446715,1735822257541,-500.0,0.00020273,3]
[347446716,1735822257551,-500.0,0.00020273,3]
[347446717,1735822257560,-500.0,0.00020273,3]
[347446718,1735822257569,-500.0,0.00020273,3]
[347446719,1735822257579,-500.0,0.00020273,3]
[347446720,1735822257597,-544.14,0.00020273,3]
[347446721,1735822257614,-9541.36,0.00020273,3]
[347446722,1735822257628,-892.3,0.00020273,3]
[347446723,1735822257638,-322.84492336,0.00020273,3]
[347446724,1735822257648,-448.64,0.00020273,3]
[347446725,1735822257657,-500.0,0.00020273,3]
[347446726,1735822257667,-500.0,0.00020273,3]
[347446727,1735822257676,-668.05,0.00020273,3]
[347446728,1735822257686,-500.0,0.00020273,3]
[347446729,1735822257695,-189.2,0.00020273,3]
[347446730,1735822257705,-500.0,0.00020273,3]
[347446731,1735822257714,-2512.14,0.00020273,3]
[347446732,1735822257723,-583.89,0.00020273,3]
[347446733,1735822257733,-614.71,0.00020273,3]
[347446734,1735822257742,-500.0,0.00020273,3]
[347446735,1735822257751,-500.0,0.00020273,3]
[347446736,1735822257760,-500.0,0.00020273,3]
[347446737,1735822257770,-500.0,0.00020273,3]
[347446738,1735822257780,-1000.96962135,0.00020321,2]
[347446739,1735822257790,-500.0,0.00020321,2]
[347446740,1735822257800,-151.72523506,0.00020362,2]
[347446741,1735822257809,-1710.78,0.00020547,3]
[347446742,1735822257819,-500.0,0.00020547,3]
[347446743,1735822257829,-500.0,0.00020547,3]
[347446744,1735822257839,-500.0,0.00020547,3]
[347446745,1735822257850,-500.0,0.00020547,3]
[347446746,1735822257860,-500.0,0.00020547,3]
[347446747,1735822257882,-500.0,0.00020547,3]
[347446748,1735822257959,-565.27,0.00020547,3]
[347446749,1735822257969,-428.82,0.00020547,3]
[347446750,1735822257978,-500.0,0.00020547,3]
[347446751,1735822257987,-500.0,0.00020547,3]
[347446752,1735822257997,-500.0,0.00020547,3]
[347446753,1735822258006,-305.96,0.00020547,3]
[347446754,1735822258016,-500.0,0.00020547,3]
[347446755,1735822258025,-500.0,0.00020547,3]
[347446756,1735822258035,-500.0,0.00020547,3]
[347446757,1735822258045,-604.57,0.00020547,3]
[347446758,1735822258054,-459.46,0.00020547,3]
[347446759,1735822258063,-500.0,0.00020547,3]
[347446760,1735822258072,-195.34,0.00020547,3]
[347446761,1735822258082,-500.0,0.00020547,3]
[347446762,1735822258093,-500.0,0.00020547,3]
[347446763,1735822258103,-1177.49,0.00020547,3]
[347446764,1735822258112,-500.0,0.00020547,3]
[347446765,1735822258122,-500.0,0.00020547,3]
[347446766,1735822258131,-453.34,0.00020547,3]
[347446767,1735822258141,-500.0,0.00020547,3]
[347446768,1735822258151,-500.0,0.00020547,3]
[347446769,1735822258160,-500.0,0.00020547,3]
[347446770,1735822258169,-500.0,0.00020547,3]
[347446771,1735822258179,-500.0,0.00020547,3]
[347446772,1735822258188,-500.0,0.00020547,3]
[347446773,1735822258197,-500.0,0.00020547,3]
[347446774,1735822258206,-500.0,0.00020547,3]
[347446775,1735822258216,-556.42,0.00020547,3]
[347446776,1735822258226,-1850.69,0.00020547,3]
[347446777,1735822258235,-1176.84,0.00020547,3]
[347446778,1735822258245,-591.46,0.00020547,3]
[347446779,1735822258256,-500.0,0.00020547,3]
[347446780,1735822258266,-500.0,0.00020547,3]
[347446781,1735822258275,-500.0,0.00020547,3]
[347446782,1735822258284,-500.0,0.00020547,3]
[347446783,1735822258293,-500.0,0.00020547,2]
[347446784,1735822258303,-500.0,0.00020547,3]
[347446785,1735822258312,-500.0,0.00020547,3]
[347446786,1735822258321,-334.84,0.00020547,3]
[347446787,1735822258331,-825.31,0.00020547,3]
[347446788,1735822258340,-554.62,0.00020547,3]
[347446789,1735822258349,-388.71494127,0.00020547,3]
[347446790,1735822258359,-500.0,0.00020547,3]
[347446791,1735822258369,-500.0,0.00020547,3]
[347446792,1735822258378,-500.0,0.00020547,3]
[347446793,1735822258387,-500.0,0.00020547,3]
[347446794,1735822258397,-500.0,0.00020547,3]
[347446795,1735822258406,-9541.36,0.00020547,3]
[347446796,1735822258415,-892.3,0.00020547,3]
[347446797,1735822258424,-500.0,0.00020547,3]
[347446798,1735822258434,-500.50393392,0.00020547,3]
[347446799,1735822258445,-668.05,0.00020547,3]
[347446800,1735822258456,-500.0,0.00020547,3]
[347446801,1735822258466,-500.0,0.00020547,3]
[347446802,1735822258475,-583.89,0.00020547,3]
[347446803,1735822258484,-2512.14,0.00020547,3]
[347446804,1735822258494,-614.71,0.00020547,3]
[347446805,1735822258504,-500.0,0.00020547,3]
[347446806,1735822258513,-500.0,0.00020547,3]
[347446807,1735822258523,-500.0,0.00020547,3]
[347446808,1735822258535,-500.0,0.00020547,3]
[347446809,1735822258553,-500.0,0.0002055,2]
[347446810,1735822258571,-151.72523506,0.00020592,2]
[347446811,1735822258585,-217.43,0.000206,2]
[347446812,1735822258601,-1500.0,0.00020722,2]
[347446813,1735822258618,-1500.0,0.00020722,2]
[347446814,1735822258635,-170.49083383,0.00020763,2]
[347446815,1735822258652,-305.651279,0.000208,9]
[347446816,1735822258666,-1710.78,0.00020821,3]
[347446817,1735822258682,-500.0,0.00020821,3]
[347446818,1735822258696,-463.1,0.00020821,3]
[347446819,1735822258709,-500.0,0.00020821,3]
[347446820,1735822258723,-487.42,0.00020821,3]
[347446821,1735822258737,-399.38,0.00020821,3]
[347446822,1735822258752,-500.0,0.00020821,3]
[347446823,1735822258767,-500.0,0.00020821,3]
[347446824,1735822258784,-501.37658339,0.00020821,3]
[347446825,1735822258797,-157.68,0.00020821,3]
[347446826,1735822258808,-500.0,0.00020821,3]
[347446827,1735822258823,-500.0,0.00020821,3]
[347446828,1735822258840,-500.0,0.00020821,3]
[347446829,1735822258852,-500.0,0.00020821,3]
[347446830,1735822258865,-282.58,0.00020821,3]
[347446831,1735822258879,-500.0,0.00020821,3]
[347446832,1735822258891,-1177.49,0.00020821,3]
[347446833,1735822258903,-500.0,0.00020821,3]
[347446834,1735822258917,-411.15,0.00020821,3]
[347446835,1735822258929,-500.0,0.00020821,3]
[347446836,1735822258942,-500.0,0.00020821,3]
[347446837,1735822258955,-500.0,0.00020821,3]
[347446838,1735822258967,-500.0,0.00020821,3]
[347446839,1735822258980,-500.0,0.00020821,3]
[347446840,1735822258993,-273.23,0.00020821,3]
[347446841,1735822259005,-500.0,0.00020821,3]
[347446842,1735822259018,-500.0,0.00020821,3]
[347446843,1735822259031,-556.42,0.00020821,3]
[347446844,1735822259044,-1850.69,0.00020821,3]
[347446845,1735822259056,-1176.84,0.00020821,3]
[347446846,1735822259069,-500.0,0.00020821,3]
[347446847,1735822259081,-500.0,0.00020821,3]
[347446848,1735822259094,-151.55,0.00020821,3]
[347446849,1735822259106,-500.0,0.00020821,3]
[347446850,1735822259119,-500.0,0.00020821,2]
[347446851,1735822259132,-500.0,0.00020821,3]
[347446852,1735822259145,-500.0,0.00020821,3]
[347446853,1735822259158,-825.31,0.00020821,3]
[347446854,1735822259171,-500.0,0.00020821,3]
[347446855,1735822259184,-500.0,0.00020821,3]
[347446856,1735822259197,-500.0,0.00020821,3]
[347446857,1735822259210,-459.51,0.00020821,3]
[347446858,1735822259222,-272.74,0.00020821,3]
[347446859,1735822259235,-9541.36,0.00020821,3]
[347446860,1735822259248,-892.3,0.00020821,3]
[347446861,1735822259261,-500.0,0.00020821,3]
[347446862,1735822259274,-668.05,0.00020821,3]
[347446863,1735822259287,-500.0,0.00020821,3]
[347446864,1735822259301,-500.0,0.00020821,3]
[347446865,1735822259314,-583.89,0.00020821,3]
[347446866,1735822259327,-2512.14,0.00020821,3]
[347446867,1735822259340,-614.71,0.00020821,3]
[347446868,1735822259354,-500.0,0.00020821,3]
[347446869,1735822259368,-500.0,0.00020821,3]
[347446870,1735822259454,-203.52,0.00020821,3]
[347446871,1735822259491,-500.0,0.00020821,3]
[347446872,1735822259501,-151.72523506,0.00020823,2]
[347446873,1735822259510,-151.0,0.000209,4]
[347446874,1735822259520,-151.72523506,0.00021054,2]
[347446875,1735822259530,-1710.78,0.00021095,3]
[347446876,1735822259540,-500.0,0.00021095,3]
[347446877,1735822259549,-500.0,0.00021095,3]
[347446878,1735822259558,-592.82,0.00021095,3]
[347446879,1735822259567,-500.0,0.00021095,3]
[347446880,1735822259577,-500.0,0.00021095,3]
[347446881,1735822259586,-500.0,0.00021095,3]
[347446882,1735822259595,-179.14,0.00021095,3]
[347446883,1735822259604,-156.98,0.00021095,3]
[347446884,1735822259615,-151.33,0.00021095,3]
[347446885,1735822259624,-1177.49,0.00021095,3]
[347446886,1735822259633,-500.0,0.00021095,3]
[347446887,1735822259643,-419.44,0.00021095,3]
[347446888,1735822259652,-369.08,0.00021095,3]
[347446889,1735822259661,-500.0,0.00021095,3]
[347446890,1735822259670,-500.0,0.00021095,3]
[347446891,1735822259679,-481.09,0.00021095,3]
[347446892,1735822259688,-500.0,0.00021095,3]
[347446893,1735822259698,-500.0,0.00021095,3]
[347446894,1735822259707,-556.42,0.00021095,3]
[347446895,1735822259717,-1850.69,0.00021095,3]
[347446896,1735822259726,-1176.84,0.00021095,3]
[347446897,1735822259735,-500.0,0.00021095,3]
[347446898,1735822259744,-500.0,0.00021095,3]
[347446899,1735822259754,-289.58,0.00021095,3]
[347446900,1735822259764,-500.0,0.00021095,2]
[347446901,1735822259773,-500.0,0.00021095,3]
[347446902,1735822259782,-187.81,0.00021095,3]
[347446903,1735822259792,-825.31,0.00021095,3]
[347446904,1735822259801,-500.0,0.00021095,3]
[347446905,1735822259811,-500.0,0.00021095,3]
[347446906,1735822259820,-500.0,0.00021095,3]
[347446907,1735822259833,-9541.36,0.00021095,3]
[347446908,1735822259842,-892.3,0.00021095,3]
[347446909,1735822259851,-500.0,0.00021095,3]
[347446910,1735822259860,-668.05,0.00021095,3]
[347446911,1735822259870,-500.0,0.00021095,3]
[347446912,1735822259880,-500.0,0.00021095,3]
[347446913,1735822259889,-583.89,0.00021095,3]
[347446914,1735822259899,-2512.14,0.00021095,3]
[347446915,1735822259909,-614.71,0.00021095,3]
[347446916,1735822259919,-500.0,0.00021095,3]
[347446917,1735822259928,-500.0,0.00021095,3]
[347446918,1735822259938,-151.0,0.000212,3]
[347446919,1735822259947,-466.64087217,0.00021212,2]
[347446920,1735822259956,-151.72523506,0.00021285,2]
[347446921,1735822259966,-1710.78,0.00021369,3]
[347446922,1735822259975,-500.0,0.00021369,3]
[347446923,1735822259984,-500.0,0.00021369,3]
[347446924,1735822259993,-500.0,0.00021369,3]
[347446925,1735822260003,-500.0,0.00021369,3]
[347446926,1735822260013,-500.0,0.00021369,3]
[347446927,1735822260023,-500.0,0.00021369,3]
[347446928,1735822260032,-1177.49,0.00021369,3]
[347446929,1735822260042,-500.0,0.00021369,3]
[347446930,1735822260051,-528.54,0.00021369,3]
[347446931,1735822260060,-500.0,0.00021369,3]
[347446932,1735822260070,-500.0,0.00021369,3]
[347446933,1735822260080,-556.42,0.00021369,3]
[347446934,1735822260089,-1850.69,0.00021369,3]
[347446935,1735822260099,-1176.84,0.00021369,3]
[347446936,1735822260108,-500.0,0.00021369,3]
[347446937,1735822260117,-500.0,0.00021369,3]
[347446938,1735822260127,-500.0,0.00021369,2]
[347446939,1735822260136,-538.44,0.00021369,3]